Workbook

Sheet 사업책임_최경돈(삼안)
A2: (4). 업무여유도
A3: ( 참여분야 : 사업총괄 책임기술자, 최 경 돈)
A4: (중복도 산정 기준일) | D4: 2016-08-01
A5: No. | B5: 용역명 | C5: 발주처 | D5: 총사업금액 (백만원) | E5: 사업기간 | G5: 1년이내 잔여일수 | H5: 총계약기간 | I5: 중복금액 (백만원)
A6: 1 | B6: 천연가스 공급관리소 환경영향평가 용역 | C6: 한국 가스공사 | D6: 509 | E6: 2013-06-07 | F6: 2016-12-31 | G6: =IF((F6-$D$4+1)>366,365,F6-$D$4+1) -> 153 | H6: =F6-E6+1 -> 1304 | I6: =ROUNDUP(D6*G6/H6/10,3) -> 5.973
A7: 2 | B7: 광주역세권 도시개발사업 환경영향평가용역 | C7: 경기도시공사 | D7: 751 | E7: 2016-04-19 | F7: 2017-06-18 | G7: =IF((F7-$D$4+1)>366,365,F7-$D$4+1) -> 322 | H7: =F7-E7+1 -> 426 | I7: =ROUNDUP(D7*G7/H7/10,3) -> 56.766
A8: 3 | B8: 고양시 하수슬러지 처리시설 건설사업 환경영향평가 용역 | C8: 고양시 | D8: 639 | E8: 2016-04-26 | F8: 2017-04-25 | G8: =IF((F8-$D$4+1)>366,365,F8-$D$4+1) -> 268 | H8: =F8-E8+1 -> 365 | I8: =ROUNDUP(D8*G8/H8/10,3) -> 46.919
A9: 4 | B9: 센텀2지구 도시첨단산업단지 조성사업 환경영향평가 용역 | C9: 부산도시공사 | D9: 811 | E9: 2016-06-20 | F9: 2018-02-19 | G9: =IF((F9-$D$4+1)>366,365,F9-$D$4+1) -> 365 | H9: =F9-E9+1 -> 610 | I9: =ROUNDUP(D9*G9/H9/10,3) -> 48.528
A10: 5 | B10: 함평군 소하천정비 종합계획(변경) 전략환경영향평가용역 | C10: 전라남도 함평군 | D10: 621 | E10: 2016-06-23 | F10: 2017-06-17 | G10: 321 | H10: 360 | I10: 55.373
B11: 계 | I11: =SUM(I6:I10) -> 213.559
A12: * 평가기준에 의한 대상 용역만 기재
A13: * 소수점 셋째자리에서 반올림

Sheet 수질책임_김용남(삼안)
A2: (4). 업무여유도
A3: ( 참여분야 : 수질관리 책임기술자, 김 용 남)
A4: (중복도 산정 기준일) | D4: 2016-08-01
A5: No. | B5: 용역명 | C5: 발주처 | D5: 총사업금액 (백만원) | E5: 사업기간 | G5: 1년이내 잔여일수 | H5: 총계약기간 | I5: 중복금액 (백만원)
A6: 1 | B6: 광주역세권 도시개발사업 환경영향평가용역 | C6: 경기도시공사 | D6: 751 | E6: 2016-04-19 | F6: 2017-06-18 | G6: =IF((F6-$D$4+1)>366,365,F6-$D$4+1) -> 322 | H6: =F6-E6+1 -> 426 | I6: =ROUNDUP(D6*G6/H6/10,3) -> 56.766
A7: 2 | B7: 센텀2지구 도시첨단산업단지 조성사업 환경영향평가 용역 | C7: 부산도시공사 | D7: 811 | E7: 2016-06-20 | F7: 2018-02-19 | G7: =IF((F7-$D$4+1)>366,365,F7-$D$4+1) -> 365 | H7: =F7-E7+1 -> 610 | I7: =ROUNDUP(D7*G7/H7/10,3) -> 48.528
A8: 3 | B8: 금강 웅포지구 등 2개지구 하천정비사업 소규모환경영향평가용역 | C8: 대전지방국토관리청 | D8: 86 | E8: 2016-06-21 | F8: 2016-12-17 | G8: =IF((F8-$D$4+1)>366,365,F8-$D$4+1) -> 139 | H8: =F8-E8+1 -> 180 | I8: =ROUNDUP(D8*G8/H8/10,3) -> 6.642
B9: 계 | I9: =SUM(I6:I8) -> 111.936
A10: * 평가기준에 의한 대상 용역만 기재
A11: * 소수점 셋째자리에서 반올림

Sheet 대기책임_김경태(삼안)
A2: (4). 업무여유도
A3: ( 참여분야 : 대기관리 책임기술자, 김 경 태)
A4: (중복도 산정 기준일) | D4: 2016-08-01
A5: No. | B5: 용역명 | C5: 발주처 | D5: 총사업금액 (백만원) | E5: 사업기간 | G5: 1년이내 잔여일수 | H5: 총계약기간 | I5: 중복금액 (백만원)
A6: 1 | B6: 광주역세권 도시개발사업 환경영향평가용역 | C6: 경기도시공사 | D6: 751 | E6: 2016-04-19 | F6: 2017-06-18 | G6: =IF((F6-$D$4+1)>366,365,F6-$D$4+1) -> 322 | H6: =F6-E6+1 -> 426 | I6: =ROUNDUP(D6*G6/H6/10,3) -> 56.766
A7: 2 | B7: 고양시 하수슬러지 처리시설 건설사업 환경영향평가 용역 | C7: 고양시 | D7: 639 | E7: 2016-04-26 | F7: 2017-04-25 | G7: =IF((F7-$D$4+1)>366,365,F7-$D$4+1) -> 268 | H7: =F7-E7+1 -> 365 | I7: =ROUNDUP(D7*G7/H7/10,3) -> 46.919
A8: 3 | B8: 센텀2지구 도시첨단산업단지 조성사업 환경영향평가 용역 | C8: 부산도시공사 | D8: 811 | E8: 2016-06-20 | F8: 2018-02-19 | G8: =IF((F8-$D$4+1)>366,365,F8-$D$4+1) -> 365 | H8: =F8-E8+1 -> 610 | I8: =ROUNDUP(D8*G8/H8/10,3) -> 48.528
A9: 4 | B9: 금강 웅포지구 등 2개지구 하천정비사업 소규모환경영향평가용역 | C9: 대전지방국토관리청 | D9: 86 | E9: 2016-06-21 | F9: 2016-12-17 | G9: =IF((F9-$D$4+1)>366,365,F9-$D$4+1) -> 139 | H9: =F9-E9+1 -> 180 | I9: =ROUNDUP(D9*G9/H9/10,3) -> 6.642
A10: 5 | B10: 함평군 소하천정비 종합계획(변경) 전략환경영향평가용역 | C10: 전라남도 함평군 | D10: 621 | E10: 2016-06-23 | F10: 2017-06-17 | G10: 321 | H10: =F10-E10+1 -> 360 | I10: =ROUNDUP(D10*G10/H10/10,3) -> 55.373
B11: 계 | I11: =SUM(I6:I10) -> 214.228
A12: * 평가기준에 의한 대상 용역만 기재
A13: * 소수점 셋째자리에서 반올림

Sheet 폐기물책임_임채권(삼안)
A2: (4). 업무여유도
A3: ( 참여분야 : 폐기물처리 책임기술자, 임 채 권)
A4: (중복도 산정 기준일) | D4: 2016-08-01
A5: No. | B5: 용역명 | C5: 발주처 | D5: 총사업금액 (백만원) | E5: 사업기간 | G5: 1년이내 잔여일수 | H5: 총계약기간 | I5: 중복금액 (백만원)
A6: 1 | B6: 충주댐계통(광역2단계) 등 수도건설사업 소규모 환경영향평가 용역 | C6: 한국수자원공사 | D6: 248 | E6: 2016-01-11 | F6: 2017-07-03 | G6: =IF((F6-$D$4+1)>366,365,F6-$D$4+1) -> 337 | H6: =F6-E6+1 -> 540 | I6: =ROUNDUP(D6*G6/H6/10,3) -> 15.478
A7: 2 | B7: 센텀2지구 도시첨단산업단지 조성사업 환경영향평가 용역 | C7: 부산도시공사 | D7: 811 | E7: 2016-06-20 | F7: 2018-02-19 | G7: =IF((F7-$D$4+1)>366,365,F7-$D$4+1) -> 365 | H7: =F7-E7+1 -> 610 | I7: =ROUNDUP(D7*G7/H7/10,3) -> 48.528
B8: 계 | I8: =SUM(I6:I7) -> 64.006
A9: * 평가기준에 의한 대상 용역만 기재
A10: * 소수점 셋째자리에서 반올림

Sheet 소음책임_유재설(삼안)
A2: (4). 업무여유도
A3: ( 참여분야 : 소음진동 책임기술자, 유 재 설)
A4: (중복도 산정 기준일) | D4: 2016-08-01
A5: No. | B5: 용역명 | C5: 발주처 | D5: 총사업금액 (백만원) | E5: 사업기간 | G5: 1년이내 잔여일수 | H5: 총계약기간 | I5: 중복금액 (백만원)
A6: 1 | B6: 농진청 등 종전부동산 1,2,4,6지구 개발사업 및 환경영향평가 용역 | C6: 한국 농어촌공사 | D6: 536 | E6: 2014-10-02 | F6: 2016-12-20 | G6: =IF((F6-$D$4+1)>366,365,F6-$D$4+1) -> 142 | H6: =F6-E6+1 -> 811 | I6: =ROUNDUP(D6*G6/H6/10,3) -> 9.385
A7: 2 | B7: 궁평지구 관광개발계획 전략 및 소규모 환경영향평가 용역 | C7: 화성시 | D7: 74 | E7: 2015-11-03 | F7: 2016-11-01 | G7: =IF((F7-$D$4+1)>366,365,F7-$D$4+1) -> 93 | H7: =F7-E7+1 -> 365 | I7: =ROUNDUP(D7*G7/H7/10,3) -> 1.886
A8: 3 | B8: 국제산업물류도시(1단계) 조성사업 제영향평가(변경협의) 용역 | C8: 부산도시공사 | D8: 236 | E8: 2015-12-01 | F8: 2018-05-31 | G8: =IF((F8-$D$4+1)>366,365,F8-$D$4+1) -> 365 | H8: =F8-E8+1 -> 913 | I8: =ROUNDUP(D8*G8/H8/10,3) -> 9.435
A9: 4 | B9: 충주댐계통(광역2단계) 등 수도건설사업 소규모 환경영향평가 용역 | C9: 한국수자원공사 | D9: 248 | E9: 2016-01-11 | F9: 2017-07-03 | G9: =IF((F9-$D$4+1)>366,365,F9-$D$4+1) -> 337 | H9: =F9-E9+1 -> 540 | I9: =ROUNDUP(D9*G9/H9/10,3) -> 15.478
A10: 5 | B10: 광주역세권 도시개발사업 환경영향평가용역 | C10: 경기도시공사 | D10: 751 | E10: 2016-04-19 | F10: 2017-06-18 | G10: =IF((F10-$D$4+1)>366,365,F10-$D$4+1) -> 322 | H10: =F10-E10+1 -> 426 | I10: =ROUNDUP(D10*G10/H10/10,3) -> 56.766
A11: 6 | B11: 센텀2지구 도시첨단산업단지 조성사업 환경영향평가 용역 | C11: 부산도시공사 | D11: 811 | E11: 2016-06-20 | F11: 2018-02-19 | G11: =IF((F11-$D$4+1)>366,365,F11-$D$4+1) -> 365 | H11: =F11-E11+1 -> 610 | I11: =ROUNDUP(D11*G11/H11/10,3) -> 48.528
B12: 계 | I12: =SUM(I6:I11) -> 141.478
A13: * 평가기준에 의한 대상 용역만 기재
A14: * 소수점 셋째자리에서 반올림

Sheet 자연환경책임_박상현(홍익)
A2: (4). 업무여유도
A3: ( 참여분야 : 자연환경 책임기술자, 박 상 현)
A4: (중복도 산정 기준일) | D4: 2016-08-01
A5: No. | B5: 용역명 | C5: 발주처 | D5: 총사업금액 (백만원) | E5: 사업기간 | G5: 1년이내 잔여일수 | H5: 총계약기간 | I5: 중복금액 (백만원)
A6: 1 | B6: 청주산단 전략환경영향평가용역 | C6: 청주시 | D6: 44 | E6: 2016-03-23 | F6: 2017-01-16 | G6: =IF((F6-$D$4+1)>366,365,F6-$D$4+1) -> 169 | H6: =F6-E6+1 -> 300 | I6: =ROUNDUP(D6*G6/H6/10,3) -> 2.479
B7: 계 | I7: =SUM(I6:I6) -> 2.479
A8: * 평가기준에 의한 대상 용역만 기재
A9: * 소수점 셋째자리에서 반올림

Sheet 교통책임_은철규(삼안)
A2: (4). 업무여유도
A3: ( 참여분야 : 소음진동 책임기술자, 유 재 설)
A4: (중복도 산정 기준일) | D4: 2016-08-01
A5: No. | B5: 용역명 | C5: 발주처 | D5: 총사업금액 (백만원) | E5: 사업기간 | G5: 1년이내 잔여일수 | H5: 총계약기간 | I5: 중복금액 (백만원)
A6: 1 | B6: 국제산업물류도시(1단계) 조성사업 제영향평가(변경협의)용역 | C6: 부산도시공사 | D6: 236 | E6: 2015-12-01 | F6: 2018-05-31 | G6: =IF((F6-$D$4+1)>366,365,F6-$D$4+1) -> 365 | H6: =F6-E6+1 -> 913 | I6: =ROUNDUP(D6*G6/H6/10,3) -> 9.435
A7: 2 | B7: 오룡지구 제영향평가용역 | C7: 전남개발공사 | D7: 232 | E7: 2016-01-25 | F7: 2017-07-25 | G7: =IF((F7-$D$4+1)>366,365,F7-$D$4+1) -> 359 | H7: =F7-E7+1 -> 548 | I7: =ROUNDUP(D7*G7/H7/10,3) -> 15.199
A8: 3 | B8: 충남도청(내포)신도시 및 도시첨단산업단지 제영향평가 변경용역 | C8: 충청남도개발공사 | D8: 691 | E8: 2016-06-22 | F8: 2018-06-22 | G8: =IF((F8-$D$4+1)>366,365,F8-$D$4+1) -> 365 | H8: =F8-E8+1 -> 731 | I8: =ROUNDUP(D8*G8/H8/10,3) -> 34.503
A9: 4 | B9: 서울A지구 보금자리 주택지구 영향평가용역 ※용역중지-14.03.02 | C9: SH공사 | D9: 748 | E9: 2009-08-10 | F9: 2015-03-31 | G9: 365 | H9: =F9-E9+1 -> 2060 | I9: ※공고일 이후 3개월 이상 용역중지
A10: 5 | B10: 임진강 유원지 조성사업 제영향평가용역 ※용역중지-12.12.20 | C10: 연천군 | D10: 591 | E10: 2012-07-13 | F10: 2013-07-12 | G10: 205 | H10: =F10-E10+1 -> 365 | I10: ※공고일 이후 3개월 이상 용역중지
B11: 계 | I11: =SUM(I6:I10) -> 59.137
A12: * 평가기준에 의한 대상 용역만 기재
A13: * 소수점 셋째자리에서 반올림

Sheet 수질참여_안용훈(홍익)
A2: (4). 업무여유도
A3: ( 참여분야 : 수질관리 참여기술자, 안 용 훈)
A4: (중복도 산정 기준일) | D4: 2016-08-01
A5: No. | B5: 용역명 | C5: 발주처 | D5: 총사업금액 (백만원) | E5: 사업기간 | G5: 1년이내 잔여일수 | H5: 총계약기간 | I5: 중복금액 (백만원)
A6: 1 | B6: 청주산단 전략환경영향평가용역 | C6: 청주시 | D6: 44 | E6: 2016-03-23 | F6: 2017-01-16 | G6: =IF((F6-$D$4+1)>366,365,F6-$D$4+1) -> 169 | H6: =F6-E6+1 -> 300 | I6: =ROUNDUP(D6*G6/H6/10,3) -> 2.479
A7: 2 | B7: 계룡시국도대체우회도로(연산-두마)건설공사 환경영향평가용역 | C7: 대전지방 국토관리청 | D7: 671 | E7: 2015-02-26 | F7: 2017-06-30 | G7: =IF((F7-$D$4+1)>366,365,F7-$D$4+1) -> 334 | H7: =F7-E7+1 -> 856 | I7: =ROUNDUP(D7*G7/H7/10,3) -> 26.182
B8: 계 | I8: =SUM(I6:I7) -> 28.661
A9: * 평가기준에 의한 대상 용역만 기재
A10: * 소수점 셋째자리에서 반올림

Sheet 대기참여_허훈(삼안)
A2: (4). 업무여유도
A3: ( 참여분야 : 대기관리 참여기술자, 허 훈)
A4: (중복도 산정 기준일) | D4: 2016-08-01
A5: No. | B5: 용역명 | C5: 발주처 | D5: 총사업금액 (백만원) | E5: 사업기간 | G5: 1년이내 잔여일수 | H5: 총계약기간 | I5: 중복금액 (백만원)
A6: 1 | B6: 궁평지구 관광개발계획 전략 및 소규모 환경영향평가 용역 | C6: 화성시 | D6: 74 | E6: 2015-11-03 | F6: 2016-11-01 | G6: =IF((F6-$D$4+1)>366,365,F6-$D$4+1) -> 93 | H6: =F6-E6+1 -> 365 | I6: =ROUNDUP(D6*G6/H6/10,3) -> 1.886
A7: 2 | B7: 충주댐계통(광역2단계) 등 수도건설사업 소규모 환경영향평가 용역 | C7: 한국수자원공사 | D7: 248 | E7: 2016-01-11 | F7: 2017-07-03 | G7: =IF((F7-$D$4+1)>366,365,F7-$D$4+1) -> 337 | H7: =F7-E7+1 -> 540 | I7: =ROUNDUP(D7*G7/H7/10,3) -> 15.478
A8: 3 | B8: 고양시 하수슬러지 처리시설 건설사업 환경영향평가 용역 | C8: 고양시 | D8: 639 | E8: 2016-04-26 | F8: 2017-04-25 | G8: =IF((F8-$D$4+1)>366,365,F8-$D$4+1) -> 268 | H8: =F8-E8+1 -> 365 | I8: =ROUNDUP(D8*G8/H8/10,3) -> 46.919
B9: 계 | I9: =SUM(I6:I8) -> 64.283
A10: * 평가기준에 의한 대상 용역만 기재
A11: * 소수점 셋째자리에서 반올림

Sheet 폐기물참여_전순환(홍익)
A2: (4). 업무여유도
A3: ( 참여분야 : 폐기물처리 참여기술자, 전 순 환)
A4: (중복도 산정 기준일) | D4: 2016-08-01
A5: No. | B5: 용역명 | C5: 발주처 | D5: 총사업금액 (백만원) | E5: 사업기간 | G5: 1년이내 잔여일수 | H5: 총계약기간 | I5: 중복금액 (백만원)
A6: 1 | B6: 청주산단 전략환경영향평가용역 | C6: 청주시 | D6: 44 | E6: 2016-03-23 | F6: 2017-01-16 | G6: =IF((F6-$D$4+1)>366,365,F6-$D$4+1) -> 169 | H6: =F6-E6+1 -> 300 | I6: =ROUNDUP(D6*G6/H6/10,3) -> 2.479
A7: 2 | B7: 계룡시국도대체우회도로(연산-두마)건설공사 환경영향평가용역 | C7: 대전지방 국토관리청 | D7: 671 | E7: 2015-02-26 | F7: 2017-06-30 | G7: =IF((F7-$D$4+1)>366,365,F7-$D$4+1) -> 334 | H7: =F7-E7+1 -> 856 | I7: =ROUNDUP(D7*G7/H7/10,3) -> 26.182
B8: 계 | I8: =SUM(I6:I7) -> 28.661
A9: * 평가기준에 의한 대상 용역만 기재
A10: * 소수점 셋째자리에서 반올림

Sheet 소음참여_박형진(삼안)
A2: (4). 업무여유도
A3: ( 참여분야 : 소음진동 참여기술자, 박 형 진)
A4: (중복도 산정 기준일) | D4: 2016-08-01
A5: No. | B5: 용역명 | C5: 발주처 | D5: 총사업금액 (백만원) | E5: 사업기간 | G5: 1년이내 잔여일수 | H5: 총계약기간 | I5: 중복금액 (백만원)
A6: 1 | B6: 금강 웅포지구 등 2개지구 하천정비사업 소규모환경영향평가용역 | C6: 대전지방국토관리청 | D6: 86 | E6: 2016-06-21 | F6: 2016-12-17 | G6: =IF((F6-$D$4+1)>366,365,F6-$D$4+1) -> 139 | H6: =F6-E6+1 -> 180 | I6: =ROUNDUP(D6*G6/H6/10,3) -> 6.642
B7: 계 | I7: =SUM(I6:I6) -> 6.642
A8: * 평가기준에 의한 대상 용역만 기재
A9: * 소수점 셋째자리에서 반올림

Sheet 자연환경참여_김용민(삼안)
A2: (4). 업무여유도
A3: ( 참여분야 : 자연환경 참여기술자, 김 용 민)
A4: (중복도 산정 기준일) | D4: 2016-08-01
A5: No. | B5: 용역명 | C5: 발주처 | D5: 총사업금액 (백만원) | E5: 사업기간 | G5: 1년이내 잔여일수 | H5: 총계약기간 | I5: 중복금액 (백만원)
A6: 1 | B6: 홍성군 소하천정비종합계획 재수립 전략환경영향평가 용역 | C6: 홍성군 | D6: 362 | E6: 2015-12-23 | F6: 2017-12-11 | G6: =IF((F6-$D$4+1)>366,365,F6-$D$4+1) -> 365 | H6: =F6-E6+1 -> 720 | I6: =ROUNDUP(D6*G6/H6/10,3) -> 18.352
A7: 2 | B7: 광주역세권 도시개발사업 환경영향평가용역 | C7: 경기도시공사 | D7: 751 | E7: 2016-04-19 | F7: 2017-06-18 | G7: =IF((F7-$D$4+1)>366,365,F7-$D$4+1) -> 322 | H7: =F7-E7+1 -> 426 | I7: =ROUNDUP(D7*G7/H7/10,3) -> 56.766
B8: 계 | I8: =SUM(I6:I7) -> 75.118
A9: * 평가기준에 의한 대상 용역만 기재
A10: * 소수점 셋째자리에서 반올림

Sheet 교통참여_오제훈(삼안)
A2: (4). 업무여유도
A3: ( 참여분야 : 교통 참여기술자, 오 제 훈)
A4: (중복도 산정 기준일) | D4: 2016-08-01
A5: No. | B5: 용역명 | C5: 발주처 | D5: 총사업금액 (백만원) | E5: 사업기간 | G5: 1년이내 잔여일수 | H5: 총계약기간 | I5: 중복금액 (백만원)
A6: 1 | B6: 오룡지구 제영향평가용역 | C6: 전남개발공사 | D6: 232 | E6: 2016-01-25 | F6: 2017-07-25 | G6: =IF((F6-$D$4+1)>366,365,F6-$D$4+1) -> 359 | H6: =F6-E6+1 -> 548 | I6: =ROUNDUP(D6*G6/H6/10,3) -> 15.199
A7: 2 | B7: 충남도청(내포)신도시 및 도시첨단산업단지 제영향평가 변경용역 | C7: 충청남도개발공사 | D7: 691 | E7: 2016-06-22 | F7: 2018-06-22 | G7: =IF((F7-$D$4+1)>366,365,F7-$D$4+1) -> 365 | H7: =F7-E7+1 -> 731 | I7: =ROUNDUP(D7*G7/H7/10,3) -> 34.503
B8: 계 | I8: =SUM(I6:I7) -> 49.702
A9: * 평가기준에 의한 대상 용역만 기재
A10: * 소수점 셋째자리에서 반올림
